Cogmind - Beta 14 @@@ ROGUE MODE // 2024.08.09 @ 00:22:32 Player: FauxMaasks Result: Destroyed by JT-G8T(E) with Overtuned Barrage Gun Performance ------------- Evolutions (0) 0 Regions Visited (4) 800 Robots Destroyed (29) 145 Value Destroyed (661) 661 Prototype IDs (13) 260 Alien Tech Used (0) 0 Bonus (2300) 2300 TOTAL SCORE: 4166 Bonus ------- Delivered SUBCON Basin 2000 Registered with UFD 300 Cogmind --------- Core Integrity 0/250 Matter 222/300 Energy 125/125 System Corruption 0% Temperature Cool (0) Movement Rolling (230) Ox10 Location -8/Scraptown Parts ------- > --- POWER (1) -------- Light Ion Engine > --- PROPULSION (2) --- Wheel > --- UTILITY (2) ------ Huge Storage Unit Makeshift Light Armor Plating > --- WEAPON (2) ------- Junk Cannon > --- INVENTORY (25) --- Wheel Compact Wheel Propulsion Shielding Light Armor Plating Tech Extrapolator Medium Laser Beam Rifle Subdweller Laser Field Laser Light Assault Rifle Light Assault Rifle Light Cannon Light Cannon Improved Light Cannon Peak State ------------ > --- POWER ------------ Light Ion Engine > --- PROPULSION ------- Compact Wheel Subdweller Monowheel > --- UTILITY ---------- Huge Storage Unit > --- WEAPON ----------- Light Assault Rifle Light Cannon > --- INVENTORY -------- Wheel Wheel Compact Wheel Propulsion Shielding Light Armor Plating Medium Laser Light Assault Rifle Light Assault Rifle Light Cannon Grenade Launcher SUBCON Basin [Rating: 26] Favorites ----------- Power Light Ion Engine Engine Light Ion Engine Propulsion Compact Wheel Wheel Compact Wheel Utility Huge Storage Unit Device Seismic Detector Storage Huge Storage Unit Protection Makeshift Light Armor Plating Weapon Light Assault Rifle Energy Gun Subdweller Laser Ballistic Gun Light Assault Rifle Ballistic Cannon Light Cannon Launcher Grenade Launcher Special Weapon Junk Cannon Build | -11 -10 -10 -8 -8 ------- Run | Yrd Mat Sub Rec Scr Slots Evolved . | . . . . . Power . | . . . . . Propulsion . | . . . . . Utility . | . . . . . Weapon . | . . . . . Parts Attached 40 | 7 7 18 1 7 Power 4 | 1 1 2 . . Engine 4 | 1 1 2 . . Core . | . . . . . Reactor . | . . . . . Propulsion 8 | 2 2 4 . . Treads . | . . . . . Leg . | . . . . . Wheel 8 | 2 2 4 . . Hover . | . . . . . Flight . | . . . . . Utility 6 | 2 1 2 . 1 Device 2 | 1 . 1 . . Storage 2 | 1 1 . . . Processor . | . . . . . Hackware . | . . . . . Protection 2 | . . 1 . 1 Artifact . | . . . . . Weapon 22 | 2 3 10 1 6 Energy Gun 4 | 1 . 2 . 1 Energy Cannon . | . . . . . Ballistic Gun 7 | 1 2 4 . . Ballistic Cannon 3 | . . 1 1 1 Launcher 5 | . 1 3 . 1 Special Weapon 3 | . . . . 3 Impact Weapon . | . . . . . Slashing Weapon . | . . . . . Piercing Weapon . | . . . . . Special Melee Weapon . | . . . . . Unidentified Prototypes 1 | . . . . 1 Parts Lost 12 | . 3 7 . 2 Power 2 | . 1 1 . . Propulsion 4 | . 1 2 . 1 Utility 1 | . 1 . . . Weapon 5 | . . 4 . 1 Highest Loss Streak 5 | . 3 5 . 1 To Critical Strikes 1 | . . 1 . . Average Slot Usage (%) 85 | . 87 85 85 83 Engine 13 | . 11 12 14 14 Wheel 27 | . 26 24 28 27 Device 2 | . 5 4 . . Storage 14 | . 14 14 14 14 Energy Gun 9 | . 5 3 14 12 Ballistic Gun 8 | . 22 14 . . Ballistic Cannon 8 | . . 7 13 12 Peak Build Rating 26 | 7 8 26 26 22 Average Rating 11 | 4 6 18 25 9 On Entrance 9 | . 7 8 26 8 Naked Turns . | . . . . . Heaviest Build 101 | 12 87 91 90 101 Greatest Support 36 | 26 32 36 26 26 Greatest Overweight (x) 27 | . 5 27 3 10 Average Overweight (x) 2 | . 2 2 3 3 Largest Inventory Capacity 25 | 8 25 25 25 25 Average Capacity 24 | 7 23 25 25 25 Most Carried 25 | 3 21 25 25 17 Average Carried 14 | 1 9 22 24 12 Final Capacity 25 | 8 25 25 25 25 Final Carried 25 | 1 21 25 11 14 Class Distribution -------------------- 98% | Mutant Dominant Class ---------------- Mutant | -10/Materials Mutant | -10/Subcaves Mutant | -8/Recycling Mutant | -8/Scraptown Resources | -11 -10 -10 -8 -8 ----------- Run | Yrd Mat Sub Rec Scr Matter Collected 819 | 185 240 187 137 70 Remotely . | . . . . . Salvage Created 799 | 17 366 266 53 97 Parts 64 | 1 29 25 3 6 Haulers Intercepted 1 | . 1 . . . Recyclers Shooed 1 | . 1 . . . Parts Field Recycled . | . . . . . Retrieved Matter . | . . . . . Parts Self-Destructed 15 | . . 15 . . Prevented . | . . . . . Kills | -11 -10 -10 -8 -8 ------- Run | Yrd Mat Sub Rec Scr Combat Hostiles Destroyed 24 | . 13 8 1 2 Melee 1 | . . 1 . . Guns 13 | . 10 3 . . Cannons 3 | . . . 1 2 AOE 7 | . 3 4 . . Classes Destroyed 11 | 1 6 1 1 2 Worker 1 | . 1 . . . Tunneler 1 | 1 . . . . Hauler 1 | . 1 . . . Operator 1 | . 1 . . . Watcher 1 | . 1 . . . Swarmer 11 | . 9 2 . . Grunt 4 | . 4 . . . Sentry 1 | . . . 1 . Subdweller 6 | . . 6 . . Federalist 1 | . . . . 1 Elite 1 | . . . . 1 Best Kill Streak 4 | 1 4 3 2 1 Combat Bots Only 4 | . 4 3 2 1 Max Kills in Single Turn 3 | 1 3 2 1 1 Gunslinging . | . . . . . Exploded 3 | . 3 2 . . Melee 1 | . . 1 . . Uniques/NPCs Destroyed . | . . . . . Combat | -11 -10 -10 -8 -8 -------- Run | Yrd Mat Sub Rec Scr Hostile Shots Fired 111 | . 60 27 2 22 Missed 24 | . 10 7 . 7 Damage Taken 1392 | . 494 525 30 343 Core 255 | . 96 111 . 48 Absorbed by Shields . | . . . . . Core Remaining (%) 100 | 100 . . . . Volleys Fired 154 | 5 45 80 2 22 Largest 2 | 2 2 2 2 2 Hottest 102 | 70 70 60 95 102 Shots Fired 222 | 10 89 96 3 24 Gun 183 | 10 88 81 2 2 Cannon 8 | . . 5 1 2 Launcher 19 | . 1 10 . 8 Special 12 | . . . . 12 Kinetic 133 | 5 75 50 1 2 Thermal 58 | 5 13 36 2 2 Explosive 19 | . 1 10 . 8 Electromagnetic . | . . . . . Impact 12 | . . . . 12 Robot Hit Streak 28 | 4 14 28 2 9 Robot Miss Streak 3 | 1 3 2 1 . Penetration Max . | . . . . . Secondary Targets . | . . . . . Shots Hit Robots 125 | 7 61 48 2 7 Core Hits 60 | 2 29 25 1 3 Critical Kills 2 | . 1 1 . . Critical Parts Destroyed 1 | . . . . 1 Critical Strikes 6 | . 4 1 . 1 Burn 3 | . 3 . . . Destroy 2 | . 1 1 . . Smash 1 | . . . . 1 Melee Attacks . | . . . . . Impact . | . . . . . Slashing . | . . . . . Piercing . | . . . . . Sneak Attacks . | . . . . . Combat Hostiles . | . . . . . Follow-up Attacks . | . . . . . Damage Inflicted 2032 | 76 654 814 43 445 Guns 982 | 76 545 322 23 16 Cannons 73 | . . 33 20 20 Explosions 539 | . 109 430 . . Melee . | . . . . . Ramming 29 | . . 29 . . Kinetic 825 | 26 404 355 20 20 Thermal 230 | 50 141 . 23 16 Explosive 539 | . 109 430 . . Electromagnetic . | . . . . . Impact 409 | . . . . 409 Slashing . | . . . . . Piercing . | . . . . . Highest Corruption . | . . . . . Average Corruption . | . . . . . Corruption Purged . | . . . . . Corruption Blocked . | . . . . . Overload Shots . | . . . . . Overflow Damage 98 | . . . . 98 Projectiles 98 | . . . . 98 Explosions . | . . . . . Melee . | . . . . . Knockbacks . | . . . . . Impact . | . . . . . Kinetic . | . . . . . Secondary . | . . . . . Self-Inflicted Damage 76 | . 31 17 . 28 Shots 4 | . 1 1 . 2 Rammed 1 | . . 1 . . Targets Rammed 1 | . . 1 . . Kicked . | . . . . . Crushed . | . . . . . Highest Temperature 378 | 50 94 378 47 42 Average Temperature 67 | 25 38 205 21 20 Received Heat Transfer 803 | . 114 613 27 49 Effects 1 | . . 1 . . Shutdowns 1 | . . 1 . . Siege Activations . | . . . . . Robots Corrupted . | . . . . . Combat Hostiles . | . . . . . Parts Fried . | . . . . . Impact Corruptions 1 | . . . . 1 Robots Melted . | . . . . . Combat Hostiles . | . . . . . Parts Melted 2 | 1 . . . 1 Heat Transferred 827 | 148 629 . 25 25 Parts Sabotaged . | . . . . . Parts Stolen . | . . . . . Parts Stripped . | . . . . . Power Chain Reactions . | . . . . . Alert | -11 -10 -10 -8 -8 ------- Run | Yrd Mat Sub Rec Scr Peak Influence 212 | 5 212 . 98 . Initial 40 | . 3 . 40 . Average 85 | . 94 . 67 . Maximum Alert Level 1 | . 1 . . . Low Security (%) 98 | 100 98 . 100 . Level 1 1 | . 1 . . . Level 2 . | . . . . . Level 3 . | . . . . . Level 4 . | . . . . . Level 5 . | . . . . . High Security . | . . . . . Max Security . | . . . . . Squads Dispatched 3 | . 3 . . . Investigation 2 | . 2 . . . Extermination . | . . . . . Reinforcement 1 | . 1 . . . Assault . | . . . . . Garrison . | . . . . . Intercept . | . . . . . Searches Triggered . | . . . . . Construction Impeded . | . . . . . Haulers Reinforced . | . . . . . Active Scanning Responses . | . . . . . Cargo Convoy Interrupts . | . . . . . Stealth | -11 -10 -10 -8 -8 --------- Run | Yrd Mat Sub Rec Scr Distress Signals 2 | . 2 . . . Communications Jammed . | . . . . . Distress Signals . | . . . . . Times Spotted 51 | . 24 15 3 9 Peak Tracking Total 9 | . 5 5 2 9 Tactical Retreats 8 | . 3 2 1 2 Traps | -11 -10 -10 -8 -8 ------- Run | Yrd Mat Sub Rec Scr Traps Triggered 3 | . 2 1 . . Indirectly . | . . . . . Trap Hack Attempts . | . . . . . Triggered . | . . . . . Disarmed . | . . . . . Reprogrammed . | . . . . . Reused . | . . . . . Traps Extracted . | . . . . . Installed . | . . . . . Triggered . | . . . . . Machines | -11 -10 -10 -8 -8 ---------- Run | Yrd Mat Sub Rec Scr Machines Disabled 3 | . . 2 . 1 Max in Single Turn 2 | . . 2 . 1 Machines Repaired . | . . . . . Machines Dismantled . | . . . . . Machines Sabotaged . | . . . . . Overloaded Fab Kills . | . . . . . Hacking | -11 -10 -10 -8 -8 --------- Run | Yrd Mat Sub Rec Scr Machines Accessed 22 | . 7 2 1 12 Terminals 8 | . 7 . 1 . Fabricators . | . . . . . Repair Stations . | . . . . . Recycling Units . | . . . . . Scanalyzers . | . . . . . Garrison Access . | . . . . . Total Hacks 87 | . 16 3 3 65 Successful 79 | . 9 3 2 65 Failed 8 | . 7 . 1 . Catastrophic 1 | . 1 . . . Database Lockouts . | . . . . . Manual 13 | . 10 . 3 . Terminals 19 | . 16 . 3 . Fabricators . | . . . . . Repair Stations . | . . . . . Recycling Units . | . . . . . Scanalyzers . | . . . . . Garrison Access . | . . . . . Terminal Hacks 75 | . 7 3 . 65 Record 61 | . 2 1 . 58 Robot Analysis 9 | . 3 . . 6 Open Door 1 | . . 1 . . Locate Traps 1 | . 1 . . . Maintenance Status 1 | . 1 . . . Derelict Proto ID Bank 1 | . . . . 1 Release Object 1 | . . 1 . . Fabricator Hacks . | . . . . . Repair Station Hacks . | . . . . . Recycling Unit Hacks . | . . . . . Scanalyzer . | . . . . . Garrison Access Hacks . | . . . . . Unauthorized Hacks 4 | . 2 . 2 . Terminals 4 | . 2 . 2 . Track 1 | . . . 1 . Botnet 3 | . 2 . 1 . Fabricators . | . . . . . Repair Stations . | . . . . . Recycling Units . | . . . . . Scanalyzers . | . . . . . Garrison Access . | . . . . . Data Cores Recovered 1 | . 1 . . . Used . | . . . . . Hacking Detections 6 | . 5 . 1 . Full Trace Events . | . . . . . Feedback Events . | . . . . . Feedback Blocked . | . . . . . Robot Schematics Acquired . | . . . . . Robots Built . | . . . . . Authchips . | . . . . . Time . | . . . . . Total Robot Build Rating . | . . . . . Part Schematics Acquired . | . . . . . Parts Built . | . . . . . Authchips . | . . . . . Time . | . . . . . Total Part Build Rating . | . . . . . Parts Repaired . | . . . . . Time . | . . . . . Parts Recycled . | . . . . . Recycled Matter . | . . . . . Retrieved Matter . | . . . . . Retrieved Components . | . . . . . Parts Scanalyzed . | . . . . . Part Schematics Acquired . | . . . . . Parts Damaged . | . . . . . Bothacking | -11 -10 -10 -8 -8 ------------ Run | Yrd Mat Sub Rec Scr Used RIF Installer . | . . . . . Robots Hacked . | . . . . . Non-combat . | . . . . . Combat . | . . . . . Robot Hacks Applied . | . . . . . Relay Couplers Released . | . . . . . Fabnet Peak Effective % . | . . . . . Robots Rewired . | . . . . . Allies Hacked . | . . . . . Hacks Repelled . | . . . . . Allies | -11 -10 -10 -8 -8 -------- Run | Yrd Mat Sub Rec Scr Total Allies . | . . . . . Largest Group . | . . . . . Highest-Rated Group . | . . . . . Highest-Rated Ally . | . . . . . Total Orders . | . . . . . Ally Attacks . | . . . . . Total Damage . | . . . . . Kills . | . . . . . Allies Corrupted . | . . . . . Allies Melted . | . . . . . Intel | -11 -10 -10 -8 -8 ------- Run | Yrd Mat Sub Rec Scr Robot Analysis Total 9 | . 3 . . 6 Derelict Logs Recovered . | . . . . . Drone Launches . | . . . . . Drone Recoveries . | . . . . . Exploration | -11 -10 -10 -8 -8 ------------- Run | Yrd Mat Sub Rec Scr Turns Passed 4922 | 69 1351 837 332 2333 Spaces Moved 3270 | 49 868 445 236 1672 Core 4 | 1 . 3 . . Treads . | . . . . . Legs . | . . . . . Wheels 3266 | 48 868 442 236 1672 Hover . | . . . . . Flight . | . . . . . Fastest Speed 50 | 50 90 129 135 135 Average Speed 133 | 88 130 140 135 135 Slowest Speed 1400 | 90 175 1400 135 230 Overloaded Moves . | . . . . . Propulsion Burnouts . | . . . . . Robots Hopped . | . . . . . Cave-ins Triggered . | . . . . . Exploration Rate (%) 53 | 4 99 27 43 93 Regions Visited 4 Branch Regions 3 Pre-discovered Areas 1 | . . 1 . . Known Exits Taken . | . . . . . Unknown Exits Taken 4 | 1 1 1 1 . Scrap Searched 3 | . . . . 3 Spaces Dug 43 | . 9 29 . 5 Terrain Destroyed 170 | . 9 95 . 66 Melee . | . . . . . Projectile 26 | . . 21 . 5 AOE 144 | . 9 74 . 61 Terrain Rammed . | . . . . . Walls Destroyed . | . . . . . Machines Disabled . | . . . . . Actions | -11 -10 -10 -8 -8 --------- Run | Yrd Mat Sub Rec Scr Total 3613 | 63 1013 567 247 1723 Wait 97 | . 74 4 5 14 Move 3267 | 48 867 445 235 1672 Hop . | . . . . . Pick Up 31 | 3 19 5 2 2 Fast Attach 14 | 5 3 4 . 2 Attach 13 | 2 . 6 . 5 Detach 6 | . . . . 6 Swap 13 | . 4 8 1 . Drop 16 | . 1 13 2 . Fire 154 | 5 45 80 2 22 Melee . | . . . . . Ram . | . . . . . Kick . | . . . . . Crush . | . . . . . Escape Stasis . | . . . . . Rewire 2 | . . 2 . . Trap . | . . . . . Miscellaneous . | . . . . . Route ------- -11/Scrapyard -10/Materials (discovered 5 exits: [*Mat x3] / [*Min] / *Sub) -10/Subcaves -8/Recycling -8/Scraptown (discovered 2 exits: [*Fac x2]) History --------- Turn | Location | Event 22 | -11/Scrapyard | Discovered new exit (range 16) 70 | -11/Scrapyard | Entered Materials 260 | -10/Materials | Discovered new exit (range 8) 308 | -10/Materials | Build established: Mutant 404 | -10/Materials | Discovered new exit (range 5) 680 | -10/Materials | Lost 3 parts (1p1n1u) 1106 | -10/Materials | Discovered new exit (range 11) 1309 | -10/Materials | Discovered new exit (range 6) 1387 | -10/Materials | Discovered new exit (range 9) 1421 | -10/Materials | Entered Subcaves 1423 | -10/Subcaves | Shifting Twisted Machinery released Sub. Power Source 1430 | -10/Subcaves | Shifting Twisted Machinery released Sub. Power Source 1507 | -10/Subcaves | Learned location of Zion (-7) 1507 | -10/Subcaves | Met a Zionite searching for "candidates" 1616 | -10/Subcaves | Lost 5 parts (1p2n2w) 1670 | -10/Subcaves | A swath of the cavern ceiling suddenly collapsed 1683 | -10/Subcaves | Core integrity fell below 50% 1695 | -10/Subcaves | Core integrity fell below 20% 1794 | -10/Subcaves | Found SUBCON Basin 2214 | -10/Subcaves | Ambushed by Subdweller buried in earth 2216 | -10/Subcaves | Ambushed by Subdweller buried in earth 2252 | -10/Subcaves | Discovered new exit (range 5) 2258 | -10/Subcaves | Entered Recycling 2394 | -8/Recycling | Scanned before Scraplab entrance 2562 | -8/Recycling | Entered Scraplab 2588 | -8/Recycling | Discovered new exit (range 3) 2590 | -8/Recycling | Entered Scraptown 2720 | -8/Scraptown | Heard Great Nut preacher, LISTEN AND RECITE! 2974 | -8/Scraptown | Discovered new exit (range 11) 3107 | -8/Scraptown | Visited SPCMW 3172 | -8/Scraptown | Visited The Evicted 3196 | -8/Scraptown | Visited Fellowship of the Rings 3346 | -8/Scraptown | Visited Cyclists 3370 | -8/Scraptown | Visited Symbiants 3616 | -8/Scraptown | Visited Cave Peace 3667 | -8/Scraptown | Visited IN-MT5's Study 3724 | -8/Scraptown | Visited UFD Registry 3724 | -8/Scraptown | Registered with UFD as "Wrenchchassis" 3751 | -8/Scraptown | Entered Cyclist Reading Room 3840 | -8/Scraptown | Visited Infowarlord's Domain 3872 | -8/Scraptown | Visited Curators Association 3894 | -8/Scraptown | Visited Chapter 10 3951 | -8/Scraptown | Visited Research Penetration Think Tank 3974 | -8/Scraptown | Visited Analyses Database 4010 | -8/Scraptown | Visited Scrap Suit Storage 4053 | -8/Scraptown | Visited Abandonware Association 4070 | -8/Scraptown | Learned abandonware demo "KABOOM.EXE" 4175 | -8/Scraptown | Visited Junk Cannon Lab 4207 | -8/Scraptown | Visited Supply Room 4226 | -8/Scraptown | Visited Science Guys 4371 | -8/Scraptown | Discovered new exit (range 3) 4670 | -8/Scraptown | Found Prototype Special Weapon 4670 | -8/Scraptown | Identified Junk Cannon 4739 | -8/Scraptown | Attacked by Scraptown defenders 4923 | -8/Scraptown | Destroyed by JT-G8T(E) with Overtuned Barrage Gun Last Messages --------------- 04839_ Penetrated by Slug. 04839_ Machine disabled. 04847_ ANNOUNCEMENT: Triborg tracking relay activated. Stay clear or you only have yourself to blame! 04848_ Penetrated by Slug. 04849_ Mak. Microdissipator Network melted. 04849_ JM-SH4(E) destroyed. 04852_ Acquired 68 matter. 04855_ Acquired Mak. Light Armor Plating. 04861_ Acquired 2 matter. 04885_ Junk Cannon collects and crushes Scrap Suit (+5 shots). 04892_ CL-WRO(g) destroyed. 04895_ Junk Cannon collects and crushes Scrap Suit (+5 shots). 04911_ Junk Cannon collects and crushes Ovr. Treads (+2 shots). 04915_ Com. Wheel destroyed. 04918_ FW-V8D(j): "If it isn't public enemy #1: the new Wrenchchassis!" 04918_ Machine disabled. Map ----- +----------------------------------------------------+ | ## #" ""#?????????????????????????? | | ## #" ""#?????????????????????????? | | ## # ""#?????????????????????????? | | ### #" ""#?????????????????????????? | | # # "#?????????????????????????? | | # ##### ## #######?????????????????????????? | | # ##### ## ##########??????????????????????? | | " """"" "" "## """"#??????????????????????? | | "## """"#??????????????????????? | | "## " "#??????????????????????? | | "## ""#??????????????????????? | | "## "#??????????????????????? | | X"#??????????????????????? | | """"""" "## " "#??????????????????????? | | """"""" "## """"#??????????????????????? | | #####"" "#############??????????????????? | | ????#"" "########## ####????????????????? | | ????#"" "## #"""""# ####?????????????? | | ????#"" "## ! # # # ##????????????? | | ??###"" "## ## # # #????????????? | | ### #"" "## X" # #????????????? | | ## #????????????? | | "## [! ### # #???????????? | | ### #"" "##*%= # #???????????? | | ??###"" "## #"""""#""# ##???????????? | | ????#"" "##"#######;;@# #????????????? | | ????#"" "## # #????????????? | | ????#"" "##TT E # ##????????????? | | #####"" "##TT""" "#######?????????????? | | """"""" "## "###jj"#???????????????????? | | """"""" "#X ""#???????????????????? | | "## "### "#???????????????????? | | "## """" "#???????????????????? | | "## ""#???????????????????? | | ## "#???????????????????? | | "########"#???????????????????? | | """ """""" ##????????##???????????????????? | | ### ###### #??????????????????????????????? | | # #??????????????????????????????? | | # #??????????????????????????????? | | # #??????????????????????????????? | | ###" """# #??????????????????????????????? | | ??#" "# #??????????????????????????????? | | ??#" ""# ############???????????????????? | | ??#" ""# #???????????????????? | | ??#" ""# ##???????????????????? | | ??#" ""# #???????????????????? | | ??#""""""# #???????????????????? | | ??#""""""# #???????????????????? | | ??######## ############???????????????????? | +----------------------------------------------------+ Best States ------------- Heat Dissipation 25 Energy Generation 15 Energy Capacity 250 Matter Stores 300 Matter Capacity 300 Sight Range 21 Terrain Scan Density 10 Armor Coverage 100 Propulsion Shielding 33 Evasion (%) 42 Item Schematics ----------------- None Robot Schematics ------------------ None Fabricated ------------ Nothing Alien Tech Used ----------------- None Achievements -------------- None Challenges ------------ None Game ------ Seed NuclearDefenseUnit Manual? 0 Play Time 00:44:08 Cumulative 125.8 hours Start 2024.08.08 @ 22:08:06 End 2024.08.09 @ 00:22:32 Sessions 13 Manual Loads 0 Difficulty Rogue Special Mode None Game No. 34 Rogue 15 Adventurer 17 Explorer 2 Win Type - Total 3 Types 2/0/1/0/0/0/0/0/0 Lore% 47 Gallery% 58 Achievement% 57 Wizard Run 0 Options --------- Layout 2 ASCII 0 Keyboard 1 Movement Vi Keybinds 0 Fullscreen 0 Font 20/SmallcapsGlow Map View 64x51 Zoom Use 0% Tactical HUD 1 Map Filters NONE Filters NONE Steam 1 RUN: af05b4f7-5807-4c70-957b-097409128c94